Cogmind - Beta 11 @@@ ROGUE MODE // 2022.04.17 @ 10:29:54 Player: pappous Result: Destroyed by G-34 Mercenary with Small Laser Performance ------------- Evolutions (0) 0 Regions Visited (1) 200 Robots Destroyed (12) 60 Value Destroyed (415) 415 Prototype IDs (0) 0 Alien Tech Used (0) 0 Bonus (0) 0 TOTAL SCORE: 675 Bonus ------- None Cogmind --------- Core Integrity 0/250 Matter 216/300 Energy 124/125 System Corruption 0% Temperature Cool (6) Movement Treading (320) Ox2 Location -10/Materials Parts ------- > --- POWER (1) -------- Light Ion Engine > --- PROPULSION (2) --- Light Treads Wheel > --- UTILITY (2) ------ High-capacity Storage Unit Structural Scanner > --- WEAPON (2) ------- Light Assault Rifle > --- INVENTORY (20) --- Light Ion Engine Light Treads Huge Storage Unit High-capacity Matter Pod (53) Targeting Computer Grenade Launcher Peak State ------------ > --- POWER ------------ Ion Engine > --- PROPULSION ------- Light Treads Wheel > --- UTILITY ---------- Small Storage Unit Light Armor Plating > --- WEAPON ----------- Medium Laser Light Assault Rifle > --- INVENTORY -------- Light Treads Wheel High-capacity Storage Unit High-capacity Matter Pod Targeting Computer Assault Rifle Grenade Launcher [Rating: 7] Favorites ----------- Power Ion Engine Engine Ion Engine Propulsion Wheel Treads Light Treads Wheel Wheel Utility Small Storage Unit Device Structural Scanner Storage Small Storage Unit Protection Light Armor Plating Weapon Light Assault Rifle Energy Gun Medium Laser Ballistic Gun Light Assault Rifle Launcher Grenade Launcher Build | -11 -10 ------- Run | Scr Mat Slots Evolved . | . . Power . | . . Propulsion . | . . Utility . | . . Weapon . | . . Parts Attached 16 | 6 10 Power 3 | 1 2 Engine 3 | 1 2 Core . | . . Reactor . | . . Propulsion 4 | 2 2 Treads 2 | 1 1 Leg . | . . Wheel 2 | 1 1 Hover . | . . Flight . | . . Utility 4 | 1 3 Device 1 | . 1 Storage 2 | 1 1 Processor . | . . Hackware . | . . Protection 1 | . 1 Artifact . | . . Weapon 5 | 2 3 Energy Gun 1 | 1 . Energy Cannon . | . . Ballistic Gun 3 | 1 2 Ballistic Cannon . | . . Launcher 1 | . 1 Special Weapon . | . . Impact Weapon . | . . Slashing Weapon . | . . Piercing Weapon . | . . Special Melee Weapon . | . . Unidentified Prototypes . | . . Parts Lost 7 | . 7 Power 1 | . 1 Propulsion 2 | . 2 Utility 1 | . 1 Weapon 3 | . 3 Highest Loss Streak 7 | . 7 To Critical Strikes . | . . Average Slot Usage (%) 85 | . 85 Engine 13 | . 13 Treads 13 | . 13 Wheel 13 | . 13 Device 2 | . 2 Storage 14 | . 14 Protection 3 | . 3 Energy Gun 9 | . 9 Ballistic Gun 13 | . 13 Naked Turns . | . . Heaviest Build 45 | 13 45 Greatest Support 20 | 10 20 Greatest Overweight (x) 4 | 3 4 Average Overweight (x) 1 | . 1 Largest Inventory Capacity 20 | 8 20 Average Capacity 9 | 7 10 Most Carried 8 | 5 8 Average Carried 5 | 1 6 Final Capacity 20 | 8 20 Final Carried 6 | 3 6 Class Distribution -------------------- 100% | Mutant Dominant Class ---------------- Mutant | -10/Materials Resources | -11 -10 ----------- Run | Scr Mat Matter Collected 454 | 174 280 Remotely . | . . Salvage Created 458 | . 458 Parts 29 | . 29 Haulers Intercepted 1 | . 1 Recyclers Shooed . | . . Parts Field Recycled . | . . Retrieved Matter . | . . Parts Self-Destructed . | . . Prevented . | . . Kills | -11 -10 ------- Run | Scr Mat Combat Hostiles Destroyed 11 | . 11 Guns 7 | . 7 AOE 3 | . 3 Classes Destroyed 2 | . 2 Hauler 1 | . 1 Grunt 11 | . 11 Best Kill Streak 4 | . 4 Combat Bots Only 3 | . 3 Max Kills in Single Turn 1 | . 1 Gunslinging . | . . Exploded 1 | . 1 Melee . | . . Uniques/NPCs Destroyed . | . . Combat | -11 -10 -------- Run | Scr Mat Damage Taken 1031 | . 1031 Core 257 | . 257 Absorbed by Shields . | . . Core Remaining (%) 100 | 100 . Volleys Fired 48 | . 48 Largest 2 | . 2 Hottest 70 | . 70 Shots Fired 86 | . 86 Gun 81 | . 81 Cannon . | . . Launcher 5 | . 5 Special . | . . Kinetic 45 | . 45 Thermal 36 | . 36 Explosive 5 | . 5 Electromagnetic . | . . Robot Hit Streak 10 | . 10 Robot Miss Streak 4 | . 4 Penetration Max . | . . Secondary Targets 3 | . 3 Max Gunslinging Chain 1 | . 1 Shots Hit Robots 54 | . 54 Core Hits 26 | . 26 Critical Kills . | . . Critical Parts Destroyed . | . . Critical Strikes 3 | . 3 Burn 3 | . 3 Melee Attacks . | . . Impact . | . . Slashing . | . . Piercing . | . . Sneak Attacks . | . . Combat Hostiles . | . . Follow-up Attacks . | . . Damage Inflicted 988 | . 988 Guns 592 | . 592 Cannons . | . . Explosions 396 | . 396 Melee . | . . Ramming . | . . Kinetic 241 | . 241 Thermal 351 | . 351 Explosive 396 | . 396 Electromagnetic . | . . Impact . | . . Slashing . | . . Piercing . | . . Highest Corruption . | . . Average Corruption . | . . Corruption Purged . | . . Corruption Blocked . | . . Overload Shots . | . . Overflow Damage 14 | . 14 Projectiles . | . . Explosions 14 | . 14 Melee . | . . Knockbacks . | . . Impact . | . . Kinetic . | . . Secondary . | . . Self-Inflicted Damage 17 | . 17 Shots 1 | . 1 Rammed . | . . Targets Rammed . | . . Kicked . | . . Crushed . | . . Highest Temperature 493 | . 493 Average Temperature 182 | . 182 Received Heat Transfer 588 | . 588 Effects 12 | . 12 Shutdowns 1 | . 1 Interference 2 | . 2 Matter Decay 1 | . 1 Damage (major) 8 | . 8 Siege Activations . | . . Robots Corrupted . | . . Combat Hostiles . | . . Parts Fried . | . . Impact Corruptions . | . . Robots Melted 1 | . 1 Combat Hostiles 1 | . 1 Parts Melted . | . . Heat Transferred 1258 | . 1258 Parts Sabotaged . | . . Parts Stolen . | . . Parts Stripped . | . . Power Chain Reactions . | . . Missiles Intercepted . | . . Alert | -11 -10 ------- Run | Scr Mat Peak Influence 225 | . 225 Initial . | . . Average 86 | . 94 Maximum Alert Level 1 | . 1 Low Security (%) 96 | 100 96 Level 1 3 | . 3 Level 2 . | . . Level 3 . | . . Level 4 . | . . Level 5 . | . . High Security . | . . Max Security . | . . Squads Dispatched 3 | . 3 Investigation . | . . Extermination . | . . Reinforcement 3 | . 3 Assault . | . . Garrison . | . . Intercept . | . . Searches Triggered . | . . Construction Impeded . | . . Haulers Reinforced . | . . Active Scanning Responses . | . . Cargo Convoy Interrupts . | . . Stealth | -11 -10 --------- Run | Scr Mat Distress Signals . | . . Communications Jammed . | . . Distress Signals . | . . Times Spotted 20 | . 20 Peak Tracking Total 5 | . 5 Tactical Retreats . | . . Traps | -11 -10 ------- Run | Scr Mat Traps Triggered . | . . Indirectly . | . . Trap Hack Attempts . | . . Triggered . | . . Disarmed . | . . Reprogrammed . | . . Reused . | . . Traps Extracted . | . . Installed . | . . Triggered . | . . Machines | -11 -10 ---------- Run | Scr Mat Machines Disabled . | . . Max in Single Turn . | . . Machines Sabotaged . | . . Garrisons Compromised . | . . Overloaded Fab Kills . | . . Hacking | -11 -10 --------- Run | Scr Mat Machines Accessed . | . . Terminals . | . . Fabricators . | . . Repair Stations . | . . Recycling Units . | . . Scanalyzers . | . . Garrison Access . | . . Total Hacks . | . . Successful . | . . Failed . | . . Catastrophic . | . . Database Lockouts . | . . Manual . | . . Terminals . | . . Fabricators . | . . Repair Stations . | . . Recycling Units . | . . Scanalyzers . | . . Garrison Access . | . . Terminal Hacks . | . . Fabricator Hacks . | . . Repair Station Hacks . | . . Recycling Unit Hacks . | . . Scanalyzer . | . . Garrison Access Hacks . | . . Unauthorized Hacks . | . . Terminals . | . . Fabricators . | . . Repair Stations . | . . Recycling Units . | . . Scanalyzers . | . . Garrison Access . | . . Data Cores Recovered . | . . Used . | . . Hacking Detections . | . . Full Trace Events . | . . Feedback Events . | . . Feedback Blocked . | . . Robot Schematics Acquired . | . . Robots Built . | . . Authchips . | . . Time . | . . Total Robot Build Rating . | . . Part Schematics Acquired . | . . Parts Built . | . . Authchips . | . . Time . | . . Total Part Build Rating . | . . Parts Repaired . | . . Time . | . . Parts Recycled . | . . Recycled Matter . | . . Retrieved Matter . | . . Retrieved Components . | . . Parts Scanalyzed . | . . Part Schematics Acquired . | . . Parts Damaged . | . . Bothacking | -11 -10 ------------ Run | Scr Mat Used RIF Installer . | . . Robots Hacked . | . . Non-combat . | . . Combat . | . . Robot Hacks Applied . | . . Relay Couplers Released . | . . Fabnet Peak Effective % . | . . Robots Rewired . | . . Allies Hacked . | . . Hacks Repelled . | . . Allies | -11 -10 -------- Run | Scr Mat Total Allies . | . . Largest Group . | . . Highest-Rated Group . | . . Highest-Rated Ally . | . . Total Orders . | . . Ally Attacks . | . . Total Damage . | . . Kills . | . . Allies Corrupted . | . . Allies Melted . | . . Intel | -11 -10 ------- Run | Scr Mat Robot Analysis Total . | . . Derelict Logs Recovered . | . . Drone Launches . | . . Drone Recoveries . | . . Exploration | -11 -10 ------------- Run | Scr Mat Turns Passed 618 | 48 570 Spaces Moved 404 | 34 370 Core 7 | 7 . Treads 3 | . 3 Legs . | . . Wheels 394 | 27 367 Hover . | . . Flight . | . . Fastest Speed 50 | 50 80 Average Speed 100 | 98 101 Slowest Speed 200 | 200 160 Overloaded Moves . | . . Propulsion Burnouts . | . . Robots Hopped . | . . Cave-ins Triggered . | . . Exploration Rate (%) 41 | 3 80 Regions Visited 1 Branch Regions . Pre-discovered Areas . | . . Known Exits Taken . | . . Unknown Exits Taken 1 | 1 . Scrap Searched . | . . Spaces Dug . | . . Terrain Destroyed 22 | . 22 Melee . | . . Projectile . | . . AOE 22 | . 22 Terrain Rammed . | . . Walls Destroyed . | . . Machines Disabled . | . . Actions | -11 -10 --------- Run | Scr Mat Total 537 | 48 489 Wait 47 | . 47 Move 403 | 33 370 Hop . | . . Pick Up 19 | 9 10 Fast Attach 2 | . 2 Attach 12 | 6 6 Detach 1 | . 1 Swap 2 | . 2 Drop 3 | . 3 Fire 48 | . 48 Melee . | . . Ram . | . . Kick . | . . Crush . | . . Escape Stasis . | . . Rewire . | . . Trap . | . . Miscellaneous . | . . Route ------- -11/Scrapyard -10/Materials (discovered 3 exits: [*Mat x2] / [*Min]) History --------- Turn | Location | Event 17 | -11/Scrapyard | Discovered new exit (range 16) 49 | -11/Scrapyard | Entered Materials 311 | -10/Materials | Discovered new exit (range 7) 316 | -10/Materials | Build established: Mutant 333 | -10/Materials | Discovered new exit (range 13) 431 | -10/Materials | Core integrity fell below 50% 439 | -10/Materials | Core integrity fell below 20% 490 | -10/Materials | Lost 7 parts (1p2n1u3w) 522 | -10/Materials | Discovered new exit (range 15) 619 | -10/Materials | Destroyed by G-34 Mercenary with Small Laser Last Messages --------------- 00469_ U-05 Engineer builds a Wall. 00470_ U-05 Engineer lays Concrete. 00474_ R-06 Scavenger collects Aluminum Leg. 00475_ Acquired Lgt. Treads. 00475_ U-05 Engineer lays Concrete. 00477_ Acquired 32 matter. 00477_ U-05 Engineer lays Concrete. 00478_ The unstable cave ceiling collapses. 00478_ U-05 Engineer lays Concrete. 00478_ R-06 Scavenger collects Aluminum Leg. 00479_ The unstable cave ceiling collapses. 00479_ U-05 Engineer lays Concrete. 00481_ Acquired Lgt. Assault Rifle. 00496_ Acquired Lgt. Ion Engine. 00500_ Acquired Structural Scanner. 00505_ U-05 Engineer lays Concrete. 00519_ Acquired Huge Storage Unit. 00521_ Dropped Sml. Storage Unit. 00522_ EXIT=FOUND 00523_ R-06 Scavenger collects Sml. Storage Unit. Map ----- +----------------------------------------------------+ | ## """ ### ###??????# #?????????# """ """ #????? | | ?# """ #?# #????????# #?????????# #????? | | ?# ### ###??##### #?????????# ??????? | | ##+##+## #??#!! #?????????# ????????? | | #??#!! #?????????# ?????????## | | #??#!! ############+####+### | | """ """ #??#!! ^ | | """ """ #??#|| T | | """ """ #??#|| | | #??########### ##### ######### | | #???????????# ???# #????###???? # | | #???????????####???# #??? ?????? | | ########+#####???????????????# #??? ?????? | | ^ ^# ! #???????????????# #?? """?????? | | / ! ! #????#### ##### ### """?????? | | # !!! #????############ # """ #???? | | # !! #????## ^ # #???? | | # #????## ^ ## #######???? | | ##############????## # #?????????? | | #################### """ ## ###???????? | | ## ######### "" %########## # | | %* ## ## != # "" % # | | != # ## # # | | % # ## = + g # | | + ## # g### #### ############+#? | | # ## "T" # @###+####/!##???????????? | | %! # ## # # ##???????????? | | ## ######### # ! ##???????????? | | ###+################ + ##???????????? | | #???## # u# ##???????????? | | #???## """ # ############???????????? | | #???## "T" # #######???????????? | | #???## + ^ ##????????????????? | | ##??## # """ #########?????????? | | T#??## """ # "R #########?????????? | | ##??## """ # """ # """ ##?????????? | | #???## """ # # "Y" ##?????????? | | ## #???## +^ ^ # # ?????????? | | # #???########+## """ + # ?????????? | | # #???######## """ # # ?????????? | | # #?????????## """ #! # ?????????? | | =# #????####### ##+##### ?????????? | | # #???######## ^ # # ?????????? | | # ##+###### # """ + # ?????????? | | # + # """ # """ # # ?????????? | | + # # """ # """ # # ?????????? | | # # !! # """ # # * ##?????????? | | ## # ! # """ # * # ##?????????? | | # !! # """ + # ##?????????? | | + # # ####### < # ##?????????? | +----------------------------------------------------+ Best States ------------- Heat Dissipation 25 Energy Generation 10 Energy Capacity 250 Matter Stores 300 Matter Capacity 300 Sight Range 16 Terrain Scan Density 10 Armor Coverage 150 Evasion (%) 44 Recoil Reduction 1 Item Schematics ----------------- None Robot Schematics ------------------ None Fabricated ------------ Nothing Alien Tech Used ----------------- None Achievements -------------- None Challenges ------------ None Game ------ Seed HypervelocityVisualArmor Manual? 0 Play Time 00:07:50 Cumulative 74.1 hours Start 2022.04.17 @ 10:22:42 End 2022.04.17 @ 10:29:54 Sessions 1 Manual Loads 0 Difficulty Rogue Special Mode None Game No. 101 Rogue 101 Adventurer 0 Explorer 0 Win Type - Total 1 Types 1/0/0/0/0/0/0/0/0 Lore% 50 Gallery% 50 Achievement% 42 Wizard Run 0 Options --------- ASCII 0 Keyboard 0 Movement Mouse Keybinds 0 Fullscreen 1 Font 14/SmallcapsLarge Map View 72x54 Tactical HUD 1 Map Filters NONE Filters NONE Steam 1 RUN: 97cdecf7-edf6-4332-b9de-21d909731981